bitfinex/quotes_SOLUSD_20240818
["timestamp","ask_amount","ask_price","bid_price","bid_amount"]
[1724001032316,30.0,145.57,145.48,0.8631117]
[1724001032515,44.2489,145.6,145.51,22.21]
[1724001032516,30.0,145.54,145.51,22.21]
[1724001032735,15.7873,145.6,145.52,6.0993]
[1724001034127,22.0389,145.64,145.53,42.21]
[1724001034334,9.1933464,145.63,145.53,42.21]
[1724001034638,1.71718213,145.63,145.53,42.21]
[1724001035029,1.71718213,145.63,145.53,20.0]
[1724001035345,22.21,145.62,145.53,20.0]
[1724001035523,1.71745437,145.61,145.52,6.0993]
[1724001035732,1.71745425,145.6,145.52,6.0993]
[1724001036148,30.79565425,145.6,145.52,6.0993]
[1724001036315,51.8687,145.59,145.5,15.3614]
[1724001036524,51.8687,145.59,145.48,15.8624117]
[1724001036525,8.9,145.57,145.48,15.8624117]
[1724001036824,1.71800555,145.56,145.48,15.8624117]
[1724001037035,8.9,145.57,145.48,15.8624117]
[1724001037924,1.71804833,145.56,145.48,15.8624117]
[1724001038427,52.96595292,145.56,145.48,0.8631117]
[1724001038621,51.2479,145.56,145.48,0.8631117]
[1724001041225,52.96612154,145.56,145.48,0.8631117]
[1724001042918,20.62,145.55,145.48,0.8631117]
[1724001043251,1.71829877,145.54,145.48,0.8631117]
[1724001045146,23.96834325,145.55,145.48,0.8631117]
[1724001045341,1.7183434,145.54,145.48,0.8631117]
[1724001045659,22.25,145.55,145.48,0.8631117]
[1724001045856,1.71834323,145.54,145.48,0.8631117]
[1724001046427,23.96834335,145.55,145.48,0.8631117]
[1724001046930,1.71834334,145.54,145.48,0.8631117]
[1724001047850,58.1179,145.56,145.48,0.8631117]
[1724001048031,51.87,145.56,145.48,0.8631117]
[1724001048231,16.5777,145.57,145.48,0.8631117]
[1724001048433,1.71796244,145.56,145.48,0.8631117]
[1724001048643,1.71796244,145.56,145.48,20.8631117]
[1724001048859,1.71796244,145.56,145.48,37.1868117]
[1724001049385,16.5777,145.57,145.48,37.1868117]
[1724001050072,22.25,145.59,145.49,6.1878]
[1724001050248,45.0,145.58,145.49,6.1878]
[1724001050679,51.8692,145.58,145.49,6.1878]
[1724001051349,1.71809785,145.57,145.49,6.1878]
[1724001051551,53.58736584,145.58,145.49,6.1878]
[1724001051871,51.8692,145.58,145.49,6.1878]
[1724001052872,42.87,145.59,145.49,6.1878]
[1724001052873,16.5777,145.6,145.49,28.4378]
[1724001053077,6.8695,145.58,145.49,28.4378]
[1724001053383,6.8687,145.59,145.49,6.1878]
[1724001054076,16.5777,145.6,145.49,6.1878]
[1724001054379,23.4459,145.6,145.49,6.1878]
[1724001054989,46.71792562,145.59,145.49,6.1878]
[1724001055306,16.5777,145.6,145.5,20.0]
[1724001055468,18.29530908,145.6,145.5,20.0]
[1724001055784,18.29530908,145.6,145.5,42.25]
[1724001056151,23.96765358,145.61,145.5,42.25]
[1724001056357,1.71765052,145.6,145.49,6.1878]
[1724001056567,20.62,145.63,145.5,22.25]
[1724001056765,46.71772072,145.62,145.5,22.25]
[1724001056987,29.1171,145.63,145.5,22.25]
[1724001057171,22.25,145.63,145.5,22.25]
[1724001057571,1.71754382,145.62,145.5,22.25]
[1724001057881,1.71754382,145.62,145.51,20.0]
[1724001058381,16.5777,145.64,145.52,43.6958]
[1724001058586,16.5777,145.64,145.53,20.0]
[1724001060362,22.25,145.65,145.53,20.0]
[1724001060565,22.25,145.65,145.54,22.25]
[1724001060789,29.116,145.65,145.54,22.25]
[1724001060990,29.116,145.65,145.53,20.0]
[1724001060991,22.25,145.63,145.53,20.0]
[1724001061302,9.1863897,145.62,145.52,21.4458]
[1724001061481,1.71770204,145.62,145.52,21.4458]
[1724001061691,1.71745047,145.62,145.52,21.4458]
[1724001062473,1.71745047,145.62,145.53,20.0]
[1724001062690,45.0,145.63,145.53,20.0]
[1724001063288,46.71734549,145.64,145.53,20.0]
[1724001063489,7.47071919,145.63,145.53,20.0]
[1724001063682,46.71734549,145.64,145.53,20.0]
[1724001063872,7.47063654,145.63,145.53,20.0]
[1724001064080,45.0,145.64,145.53,20.0]
[1724001064290,7.47064831,145.63,145.53,20.0]
[1724001064480,45.0,145.64,145.53,20.0]
[1724001064675,7.4706502,145.63,145.53,20.0]
[1724001064881,37.57,145.67,145.53,20.0]
[1724001065076,52.47111493,145.66,145.53,20.0]
[1724001065276,9.18828215,145.65,145.54,22.25]
[1724001065478,7.47111493,145.64,145.55,26.1257]
[1724001065678,44.4349,145.67,145.55,26.1257]
[1724001065679,46.1518992,145.67,145.55,26.1257]
[1724001066201,7.47090058,145.66,145.55,26.1257]
[1724001066406,7.47090058,145.65,145.55,26.1257]
[1724001066608,7.47090058,145.64,145.55,26.1257]
[1724001066791,6.8653,145.66,145.55,26.1257]
[1724001066985,52.47093607,145.65,145.55,26.1257]
[1724001067195,45.0,145.65,145.55,26.1257]
[1724001067404,7.47059933,145.64,145.56,15.3201]
[1724001067602,45.0,145.66,145.56,15.3201]
[1724001067910,7.47073135,145.65,145.56,15.3201]
[1724001068105,7.47073135,145.64,145.56,15.3201]
[1724001068310,33.93696799,145.69,145.56,37.5701]
[1724001068480,7.47120125,145.68,145.57,20.0]
[1724001068678,7.47120125,145.67,145.57,20.0]
[1724001068890,7.47120125,145.66,145.57,20.0]
[1724001069088,30.83118208,145.69,145.57,20.0]
[1724001069286,7.47102776,145.68,145.57,20.0]
[1724001069511,7.47102776,145.67,145.57,20.0]
[1724001069712,7.47102776,145.66,145.57,20.0]
[1724001069923,22.25,145.69,145.57,20.0]
[1724001070084,52.47156991,145.68,145.57,20.0]
[1724001070407,7.47156991,145.67,145.57,20.0]
[1724001070622,45.0,145.68,145.57,20.0]
[1724001070791,18.55093613,145.72,145.61,6.1257]
[1724001070994,16.05219604,145.71,145.61,6.1257]
[1724001071188,7.4726965,145.7,145.61,6.1257]
[1724001071509,7.47268652,145.69,145.62,1.3731986]
[1724001071812,22.25,145.72,145.62,20.0]
[1724001071813,29.1125,145.72,145.62,20.0]
[1724001072015,14.33622479,145.71,145.62,20.0]
[1724001072312,7.47292479,145.7,145.62,20.0]
[1724001072806,9.18938739,145.7,145.62,20.0]
[1724001073008,1.7164626,145.7,145.61,6.1257]
[1724001073314,1.7164626,145.7,145.62,20.0]
[1724001073897,1.71632682,145.69,145.62,20.0]
[1724001075024,1.71632653,145.71,145.62,20.0]
[1724001075340,45.0,145.72,145.62,20.0]
[1724001075494,22.25,145.74,145.62,20.0]
[1724001075495,7.47310787,145.71,145.63,15.3201]
[1724001075809,1.71614518,145.73,145.65,6.1257]
[1724001076406,6.8616,145.74,145.65,6.1257]
[1724001076724,9.18951973,145.73,145.65,6.1257]
[1724001076897,1.71611623,145.73,145.65,6.1257]
[1724001077097,6.8616,145.74,145.65,6.1257]
[1724001077308,22.1811,145.75,145.65,6.1257]
[1724001077496,9.19039011,145.74,145.65,6.1257]
[1724001077698,1.71607877,145.73,145.65,6.1257]
[1724001078533,8.57817877,145.73,145.65,6.1257]
[1724001078701,45.0,145.72,145.65,6.1257]
[1724001078903,1.716253,145.71,145.65,6.1257]
[1724001079333,45.0,145.72,145.65,6.1257]
[1724001079632,1.71625037,145.71,145.65,6.1257]
[1724001079838,45.0,145.72,145.65,6.1257]
[1724001080037,46.7162518,145.73,145.65,6.1257]
[1724001080346,45.0,145.73,145.65,6.1257]
[1724001080509,6.8616,145.74,145.65,6.1257]
[1724001080711,22.181,145.75,145.65,6.1257]
[1724001080912,45.0,145.74,145.65,6.1257]
[1724001081405,1.7160292,145.73,145.65,6.1257]
[1724001081604,45.0,145.74,145.65,6.1257]
[1724001082344,38.9165,145.79,145.66,58.6905]
[1724001082511,6.8599,145.78,145.66,58.6905]
[1724001082709,1.71571075,145.77,145.66,58.6905]
[1724001083008,1.71576047,145.76,145.66,58.6905]
[1724001084744,1.71576047,145.76,145.66,36.4405]
[1724001084915,22.25,145.75,145.66,16.4405]
[1724001085119,46.71610246,145.74,145.66,16.4405]
[1724001085323,1.71610437,145.73,145.66,16.4405]
[1724001085924,23.96610437,145.73,145.66,16.4405]
[1724001086242,45.0,145.72,145.66,16.4405]
[1724001086543,1.7161359,145.71,145.66,16.4405]
[1724001086763,1.71617331,145.7,145.66,16.4405]
[1724001087132,22.25,145.73,145.66,16.4405]
[1724001087323,51.8615,145.74,145.66,16.4405]
[1724001087743,29.1111,145.75,145.66,16.4405]
[1724001087928,6.8607,145.76,145.66,16.4405]
[1724001088139,45.0,145.75,145.66,16.4405]
[1724001088929,6.8607,145.76,145.66,16.4405]
[1724001089563,6.8607,145.76,145.66,38.6905]
[1724001090727,8.57657401,145.76,145.66,38.6905]
[1724001091144,8.57657401,145.76,145.66,16.4405]
[1724001091339,45.0,145.75,145.66,16.4405]
[1724001091549,1.71591307,145.74,145.66,16.4405]
[1724001091753,1.715913,145.73,145.66,16.4405]
[1724001092349,23.965913,145.73,145.66,16.4405]
[1724001092548,45.0,145.72,145.66,16.4405]
[1724001092753,51.8624,145.72,145.66,16.4405]
[1724001093559,45.0,145.72,145.66,16.4405]
[1724001094251,1.71622338,145.71,145.66,16.4405]
[1724001094556,29.1121,145.73,145.66,16.4405]
[1724001094557,1.71619224,145.72,145.66,16.4405]
[1724001094758,6.8631,145.71,145.66,16.4405]
[1724001095068,45.0,145.72,145.66,16.4405]
[1724001095069,51.8625,145.72,145.66,16.4405]
[1724001095371,6.8625,145.72,145.66,16.4405]
[1724001096762,1.71624431,145.71,145.66,16.4405]
[1724001096943,1.71624249,145.7,145.66,16.4405]
[1724001098467,6.8625,145.72,145.66,16.4405]
[1724001098666,22.25,145.75,145.66,16.4405]
[1724001098966,22.25,145.75,145.66,17.81349021]
[1724001099553,6.8616,145.74,145.66,17.81349021]
[1724001099867,6.861,145.75,145.67,1.3728173]
[1724001100654,1.71591809,145.74,145.66,16.4405]
[1724001100968,1.71596066,145.73,145.66,16.4405]
[1724001101571,45.0,145.74,145.66,16.4405]
[1724001104064,6.861,145.75,145.66,16.4405]
[1724001104464,7.48737685,145.74,145.66,16.4405]
[1724001104651,6.861,145.75,145.66,16.4405]
[1724001104980,7.48737685,145.74,145.66,16.4405]
[1724001105188,6.861,145.75,145.66,16.4405]
[1724001105484,7.48733331,145.74,145.66,16.4405]
[1724001105650,6.861,145.75,145.66,16.4405]
[1724001105851,7.48732669,145.74,145.66,16.4405]
[1724001106065,6.861,145.75,145.66,16.4405]
[1724001106376,7.48733331,145.74,145.66,16.4405]
[1724001106553,6.861,145.75,145.66,16.4405]
[1724001106748,7.48733569,145.74,145.66,16.4405]
[1724001106977,6.861,145.75,145.66,16.4405]
[1724001107182,7.48733331,145.74,145.66,16.4405]
[1724001107479,6.861,145.75,145.66,16.4405]
[1724001107694,7.48820636,145.74,145.66,16.4405]
[1724001107867,6.861,145.75,145.66,16.4405]
[1724001108175,7.48971519,145.74,145.66,16.4405]
[1724001108375,7.48971519,145.73,145.66,16.4405]
[1724001108558,8.88,145.75,145.66,25.3205]
[1724001108758,7.49037789,145.74,145.66,25.3205]
[1724001108963,8.88,145.75,145.66,25.3205]
[1724001109276,7.49116853,145.74,145.66,25.3205]
[1724001109465,8.88,145.75,145.66,25.3205]
[1724001109658,9.20682091,145.74,145.66,25.3205]
[1724001109884,8.88,145.77,145.69,6.3212]
[1724001110080,7.4913021,145.76,145.69,6.3212]
[1724001110289,8.88,145.77,145.69,6.3212]
[1724001110587,7.49202018,145.76,145.69,6.3212]
[1724001110961,8.88,145.77,145.7,16.5188]
[1724001111158,9.20780489,145.76,145.7,16.5188]
[1724001111366,7.49233508,145.75,145.7,16.5188]
[1724001111876,20.60048027,145.79,145.7,16.5188]
[1724001112188,19.21506533,145.78,145.7,16.5188]
[1724001112394,7.49458506,145.77,145.7,16.5188]
[1724001112562,7.49458506,145.76,145.7,16.5188]
[1724001112764,7.49458506,145.75,145.7,16.5188]
[1724001112964,11.72048027,145.78,145.7,16.5188]
[1724001113176,9.21053733,145.77,145.7,16.5188]
[1724001113384,9.2105388,145.76,145.7,16.5188]
[1724001113554,7.49506674,145.75,145.7,16.5188]
[1724001114267,7.49506674,145.74,145.7,16.5188]
[1724001114476,15.7392,145.79,145.7,16.5188]
[1724001114689,19.22058538,145.78,145.7,16.5188]
[1724001114854,19.22058538,145.77,145.7,16.5188]
[1724001115057,7.49539271,145.76,145.7,16.5188]
[1724001115371,7.49539271,145.75,145.7,16.5188]
[1724001115571,7.49539271,145.74,145.7,16.5188]
[1724001115760,11.72519267,145.78,145.7,16.5188]
[1724001115963,19.22042103,145.77,145.7,16.5188]
[1724001116179,19.22042103,145.76,145.7,16.5188]
[1724001116370,7.49522836,145.75,145.7,16.5188]
[1724001116570,7.49522836,145.74,145.7,16.5188]
[1724001116770,11.72519267,145.76,145.7,16.5188]
[1724001116969,7.49537001,145.75,145.7,16.5188]
[1724001117169,11.72519267,145.77,145.7,16.5188]
[1724001117475,7.49564512,145.76,145.7,16.5188]
[1724001117682,7.49564512,145.75,145.7,16.5188]
[1724001117993,11.72519267,145.76,145.7,16.5188]
[1724001118177,8.88,145.78,145.7,16.5188]
[1724001118178,19.22073334,145.75,145.7,16.5188]
[1724001118485,7.49554067,145.74,145.7,16.5188]
[1724001118665,8.88,145.76,145.7,16.5188]
[1724001118666,7.49554067,145.73,145.7,16.5188]
[1724001118863,11.72519267,145.75,145.7,16.5188]
[1724001119060,7.49489225,145.74,145.7,16.5188]
[1724001119260,7.49489225,145.73,145.7,16.5188]
[1724001119458,11.72519267,145.75,145.7,16.5188]
[1724001119667,9.21035044,145.74,145.7,16.5188]
[1724001119887,7.49468682,145.73,145.7,16.5188]
[1724001120091,11.72416015,145.75,145.7,16.5188]
[1724001120291,19.21810363,145.74,145.7,16.5188]
[1724001120602,9.20975309,145.73,145.7,16.5188]
[1724001120765,7.4940933,145.72,145.7,16.5188]
[1724001120964,9.20907776,145.71,145.69,6.3212]
[1724001121179,1.71583393,145.71,145.69,6.3212]
[1724001121379,1.71589589,145.72,145.69,6.3212]
[1724001121582,7.49371784,145.71,145.69,6.3212]
[1724001121774,11.72416015,145.73,145.69,6.3212]
[1724001121979,7.49366505,145.72,145.69,6.3212]
[1724001122181,7.49366505,145.71,145.69,6.3212]
[1724001122487,13.44004418,145.72,145.69,6.3212]
[1724001122687,7.49674831,145.71,145.69,6.3212]
[1724001122893,13.4432613,145.72,145.69,6.3212]
[1724001123183,7.49673479,145.71,145.69,6.3212]
[1724001127316,7.49673479,145.71,145.7,8.88]
[1724001127502,7.49673479,145.71,145.7,28.88]
[1724001129490,7.49673479,145.71,145.7,20.0]
[1724001131393,11.744322,145.78,145.7,20.0]
[1724001131596,64.24894875,145.77,145.71,20.0]
[1724001131819,19.24894875,145.76,145.71,20.0]
[1724001131995,20.96450883,145.75,145.71,20.0]
[1724001132205,7.50462675,145.74,145.7,20.0]
[1724001132519,13.45988208,145.75,145.7,20.0]
[1724001132719,7.50501171,145.74,145.7,20.0]
[1724001132896,13.45988208,145.75,145.7,20.0]
[1724001133096,7.50532091,145.74,145.7,20.0]
[1724001133422,45.0,145.77,145.7,20.0]
[1724001133423,7.50532091,145.73,145.7,20.0]
[1724001133598,7.50532091,145.73,145.69,15.2012]
[1724001133599,7.50470162,145.72,145.69,6.3212]
[1724001133802,11.744322,145.73,145.69,6.3212]
[1724001134113,7.50443424,145.72,145.69,6.3212]
[1724001134420,1.71591308,145.71,145.69,6.3212]
[1724001134623,11.744322,145.74,145.69,6.3212]
[1724001134799,19.24905717,145.73,145.69,6.3212]
[1724001134997,7.50473517,145.72,145.69,6.3212]
[1724001135193,11.744322,145.73,145.69,6.3212]
[1724001135428,7.50489999,145.72,145.69,6.3212]
[1724001135608,8.88,145.75,145.69,6.3212]
[1724001135609,11.744322,145.73,145.69,6.3212]
[1724001135932,7.50460489,145.72,145.69,6.3212]
[1724001136100,11.744322,145.73,145.69,6.3212]
[1724001136299,7.50520223,145.72,145.69,6.3212]
[1724001136521,11.744322,145.73,145.69,6.3212]
[1724001136831,7.50520223,145.72,145.69,6.3212]
[1724001137006,11.74061103,145.73,145.69,6.3212]
[1724001137201,8.88,145.75,145.69,6.3212]
[1724001137402,64.24607657,145.74,145.69,6.3212]
[1724001137711,19.24607657,145.73,145.69,6.3212]
[1724001137911,7.50530492,145.72,145.69,6.3212]
[1724001138116,11.74077165,145.73,145.69,6.3212]
[1724001138306,7.50433093,145.72,145.69,6.3212]
[1724001138508,11.74077165,145.73,145.69,6.3212]
[1724001138707,7.50431864,145.72,145.69,6.3212]
[1724001139013,11.74077165,145.73,145.69,6.3212]
[1724001139213,7.50426997,145.72,145.69,6.3212]
[1724001139412,7.50426997,145.71,145.69,6.3212]
[1724001139724,11.74077165,145.73,145.69,6.3212]
[1724001139924,7.50414048,145.72,145.69,15.2012]
[1724001140099,11.74077165,145.78,145.71,8.88]
[1724001140300,19.24503101,145.77,145.71,8.88]
[1724001140501,19.24503101,145.76,145.71,8.88]
[1724001140714,19.24503101,145.75,145.71,8.88]
[1724001140925,19.24503101,145.74,145.71,8.88]
[1724001141105,11.74077165,145.78,145.71,8.88]
[1724001141306,8.88,145.8,145.71,8.88]
[1724001141307,19.24582358,145.77,145.71,8.88]
[1724001141509,7.50250076,145.76,145.71,8.88]
[1724001141704,19.23888215,145.75,145.72,20.0]
[1724001141925,7.50250076,145.74,145.72,20.0]
[1724001142141,11.73638139,145.79,145.72,20.0]
[1724001142339,19.23873831,145.78,145.72,20.0]
[1724001142511,19.23873831,145.77,145.72,20.0]
[1724001142708,19.23873831,145.76,145.72,20.0]
[1724001142906,19.23873831,145.75,145.72,20.0]
[1724001143222,7.50235692,145.74,145.72,20.0]
[1724001143406,13.4515975,145.79,145.72,20.0]
[1724001143605,19.23854019,145.78,145.72,20.0]
[1724001143806,19.23854019,145.77,145.72,20.0]
[1724001144008,1.71518502,145.8,145.72,20.0]
[1724001144009,19.23854019,145.76,145.72,20.0]
[1724001144316,19.23854019,145.75,145.72,20.0]
[1724001144531,7.5021588,145.74,145.72,20.0]
[1724001144717,11.73254057,145.79,145.72,20.0]
[1724001144920,19.23258745,145.78,145.72,20.0]
[1724001145117,19.23258745,145.77,145.72,20.0]
[1724001145433,19.23258745,145.76,145.72,20.0]
[1724001145730,7.50004688,145.75,145.72,20.0]
[1724001146024,11.73254057,145.79,145.72,20.0]
[1724001146203,75.23288511,145.9,145.75,8.88]
[1724001146204,19.23287348,145.78,145.75,8.88]
[1724001146407,6.8568,145.84,145.75,8.88]
[1724001146616,19.23473855,145.83,145.75,8.88]
[1724001146813,19.23473855,145.82,145.75,8.88]
[1724001147022,19.23473855,145.81,145.75,8.88]
[1724001147228,19.23473855,145.8,145.75,8.88]
[1724001147447,19.23473855,145.79,145.75,8.88]
[1724001147732,25.4737,145.85,145.77,8.88]
[1724001147733,11.733852,145.83,145.77,8.88]
[1724001148036,19.23560481,145.82,145.77,8.88]
[1724001148236,19.23560481,145.81,145.78,21.3716734]
[1724001148527,11.733852,145.84,145.78,20.0]
[1724001148724,19.23607099,145.83,145.78,20.0]
[1724001148930,7.50221899,145.82,145.79,8.88]
[1724001149134,6.1472,145.9,145.8,6.2079]
[1724001149135,7.50221899,145.81,145.8,6.2079]
[1724001149313,11.733852,145.85,145.8,35.0879]
[1724001149507,6.854,145.9,145.81,1.37140851]
[1724001149508,11.733852,145.89,145.81,1.37140851]
[1724001149724,19.23681415,145.88,145.81,20.0]
[1724001149929,19.23681415,145.87,145.81,20.0]
[1724001150131,7.50296215,145.86,145.81,20.0]
[1724001150322,8.88,145.89,145.81,20.0]
[1724001150632,7.50261331,145.88,145.81,20.0]
[1724001150933,7.50261331,145.87,145.82,15.4315]
[1724001151127,7.50261331,145.86,145.82,15.4315]
[1724001151327,6.8537,145.91,145.83,20.0]
[1724001151521,7.50302455,145.9,145.83,20.0]
[1724001151835,18.59075668,145.91,145.83,20.0]
[1724001151836,7.50410086,145.89,145.83,20.0]
[1724001152036,7.50413104,145.88,145.83,20.0]
[1724001152218,1.71411728,145.87,145.83,20.0]
[1724001152420,9.21824832,145.87,145.8,6.2079]
[1724001152633,45.0,145.86,145.81,20.0]
[1724001152817,1.71411728,145.87,145.81,20.0]
[1724001152818,1.71447304,145.85,145.81,20.0]
[1724001153236,45.0,145.87,145.81,20.0]
[1724001153622,46.71446812,145.87,145.81,20.0]
[1724001153834,45.0,145.87,145.81,20.0]
[1724001154940,1.71436735,145.86,145.81,20.0]
[1724001155260,1.71447277,145.85,145.81,20.0]
[1724001156529,45.0,145.86,145.81,20.0]
[1724001157545,45.0,145.86,145.8,6.2079]
[1724001157724,1.7146328,145.85,145.78,15.4315]
[1724001157916,29.0178,145.82,145.73,6.3141]
[1724001158114,45.0,145.81,145.73,6.3141]
[1724001161147,1.71510715,145.8,145.74,20.0]
[1724001161356,1.71510901,145.79,145.74,20.0]
[1724001161565,1.71510901,145.79,145.65,307.51093054]
[1724001161566,37.4214,145.78,145.69,6.3141]
[1724001161747,29.0206,145.76,145.67,15.0887]
[1724001161957,1.71579733,145.75,145.67,15.0887]
[1724001162267,46.71579733,145.75,145.67,15.0887]
[1724001165259,46.71579733,145.75,145.68,20.0]
[1724001165554,45.0,145.75,145.68,20.0]
[1724001166456,1.71569848,145.74,145.68,20.0]
[1724001167056,45.0,145.76,145.68,20.0]
[1724001169557,6.8602,145.77,145.68,21.37260391]
[1724001169865,6.8602,145.77,145.68,20.0]
[1724001170253,1.71559477,145.76,145.68,20.0]
[1724001170455,44.2811,145.78,145.68,20.0]
[1724001170669,45.0,145.77,145.68,20.0]
[1724001171438,1.71559878,145.76,145.68,20.0]
[1724001171639,8.57619878,145.76,145.68,20.0]
[1724001171876,45.0,145.75,145.68,20.0]
[1724001172055,1.71579992,145.74,145.68,20.0]
[1724001172370,45.0,145.75,145.68,20.0]
[1724001172574,45.0,145.76,145.68,20.0]
[1724001173376,46.71568036,145.76,145.68,20.0]
[1724001174368,45.0,145.76,145.68,20.0]
[1724001175153,22.1211,145.78,145.68,20.0]
[1724001175352,22.1211,145.78,145.68,42.16]
[1724001175659,46.71554168,145.77,145.68,20.0]
[1724001175853,1.71562565,145.76,145.68,20.0]
[1724001177072,45.0,145.77,145.68,20.0]
[1724001178461,45.0,145.77,145.69,8.87]
[1724001179377,51.8601,145.77,145.69,8.87]
[1724001180564,1.71567126,145.76,145.69,8.87]
[1724001180762,1.71567126,145.76,145.68,20.0]
[1724001181072,10.58567126,145.76,145.68,20.0]
[1724001181446,8.87,145.76,145.68,20.0]
[1724001181774,46.71568303,145.75,145.68,20.0]
[1724001182142,8.87,145.76,145.68,28.87]
[1724001183352,1.71568215,145.75,145.68,28.87]
[1724001183673,46.71568215,145.75,145.68,20.0]
[1724001184577,8.87,145.74,145.68,20.0]
[1724001184751,1.71589001,145.73,145.68,20.0]
[1724001186557,46.71589001,145.73,145.68,20.0]
[1724001186756,46.71589001,145.73,145.67,15.0887]
[1724001186757,10.58599984,145.72,145.65,6.3141]
[1724001186971,10.58599984,145.72,145.63,16.1197]
[1724001186972,8.87,145.7,145.63,16.1197]
[1724001187160,1.71650502,145.69,145.63,16.1197]
[1724001187361,46.71650502,145.69,145.63,16.1197]
[1724001188791,1.71649557,145.68,145.63,16.1197]
[1724001189162,1.71658958,145.67,145.64,20.0]
[1724001189687,1.71658958,145.67,145.62,20.0]
[1724001190963,46.71658958,145.67,145.62,20.0]
[1724001192886,1.71662594,145.66,145.62,20.0]
[1724001194891,15.7335,145.7,145.62,21.3733539]
[1724001195184,45.0,145.69,145.62,20.0]
[1724001195556,1.71653635,145.68,145.62,20.0]
[1724001195777,1.71655572,145.67,145.62,20.0]
[1724001198991,45.0,145.69,145.62,20.0]
[1724001203030,23.8724,145.72,145.62,20.0]
[1724001203211,45.0,145.71,145.63,8.87]
[1724001203694,45.0,145.71,145.64,20.0]
[1724001205679,1.71625298,145.7,145.64,20.0]
[1724001205886,1.71625298,145.7,145.63,20.0]
[1724001205887,10.58625298,145.7,145.63,20.0]
[1724001206189,45.0,145.69,145.62,20.0]
[1724001206412,1.71647582,145.68,145.62,20.0]
[1724001206724,45.0,145.69,145.62,20.0]
[1724001206725,1.71647639,145.67,145.62,20.0]
[1724001207713,1.7164763,145.68,145.62,20.0]
[1724001207888,45.0,145.69,145.62,20.0]
[1724001208086,23.8724,145.72,145.62,28.87]
[1724001208282,45.0,145.71,145.62,28.87]
[1724001208493,45.0,145.71,145.64,8.87]
[1724001208716,11.71916888,145.76,145.62,20.0]
[1724001208717,8.87,145.75,145.66,8.87]
[1724001208887,7.48479214,145.74,145.66,8.87]
[1724001209092,15.5201,145.76,145.66,8.87]
[1724001209411,7.48515305,145.75,145.67,26.3221]
[1724001209713,15.5201,145.76,145.67,26.3221]
[1724001209914,7.48468496,145.75,145.67,26.3221]
[1724001210107,15.5201,145.76,145.67,26.3221]
[1724001210316,7.48470627,145.75,145.67,26.3221]
[1724001210500,15.5201,145.76,145.67,26.3221]
[1724001210823,7.48488156,145.75,145.67,6.3221]
[1724001211114,22.3808,145.76,145.67,6.3221]
[1724001211310,7.48482574,145.75,145.67,6.3221]
[1724001211524,15.5201,145.76,145.68,8.87]
[1724001211823,15.5201,145.76,145.69,20.0]
[1724001212800,45.0,145.75,145.69,20.0]
[1724001214423,15.5201,145.76,145.69,20.0]
[1724001214624,8.87,145.77,145.69,20.0]
[1724001214831,45.0,145.76,145.69,20.0]
[1724001216700,45.0,145.76,145.68,25.4822]
[1724001217026,45.0,145.76,145.69,20.0]
[1724001220806,10.58565894,145.75,145.69,20.0]
[1724001222004,45.0,145.74,145.69,20.0]
[1724001222317,1.71597763,145.73,145.68,20.0]
[1724001223307,45.0,145.74,145.68,21.37276375]
[1724001223617,8.87,145.75,145.68,20.0]
[1724001235628,7.47897533,145.74,145.68,20.0]
[1724001235827,8.87,145.75,145.68,20.0]
[1724001236155,7.47895797,145.74,145.68,20.0]
[1724001236327,8.87,145.75,145.68,20.0]